fUSD/lending_fUSD_20251011
["ID","MTS","AMOUNT","RATE_DAILY","PERIOD"]
[390775488,1760142728275,-172.449077,0.00019726,7]
[390775489,1760142728285,-500.0,0.00019726,2]
[390775490,1760142728295,-1592.4,0.00019726,2]
[390775491,1760142728308,-500.0,0.00019726,2]
[390775492,1760142728320,-172.449077,0.00019726,7]
[390775493,1760142728333,-151.0,0.00019726,7]
[390775494,1760142728343,-500.0,0.00019726,2]
[390775495,1760142728355,-151.0,0.00019726,7]
[390775496,1760142728365,-500.0,0.00019726,2]
[390775497,1760142728375,-500.0,0.00019726,2]
[390775498,1760142728384,-500.0,0.00019726,2]
[390775499,1760142728396,-500.0,0.00019726,2]
[390775500,1760142728406,-4287.58,0.00019726,2]
[390775501,1760142728416,-500.0,0.00019726,2]
[390775502,1760142728425,-500.0,0.00019726,2]
[390775503,1760142728435,-300.0,0.00019726,2]
[390775504,1760142728445,-500.0,0.00019726,2]
[390775505,1760142728455,-500.0,0.00019726,2]
[390775506,1760142728464,-746.81,0.00019726,2]
[390775507,1760142728478,-500.000001,0.00019726,2]
[390775508,1760142728489,-500.0,0.00019726,2]
[390775509,1760142728498,-1454.95,0.00019726,2]
[390775510,1760142728508,-500.0,0.00019726,2]
[390775511,1760142728518,-500.0,0.00019726,2]
[390775512,1760142728528,-500.0,0.00019726,2]
[390775513,1760142728541,-500.0,0.00019726,2]
[390775514,1760142728551,-500.0,0.00019726,2]
[390775515,1760142728560,-663.87,0.00019726,2]
[390775516,1760142728569,-1265.02,0.00019726,2]
[390775517,1760142728579,-500.0,0.00019726,2]
[390775518,1760142728589,-2132.23,0.00019726,2]
[390775519,1760142728599,-459.62683489,0.00019726,2]
[390775520,1760142728609,-600.54,0.00019726,2]
[390775521,1760142728619,-500.0,0.00019726,2]
[390775522,1760142728629,-151.0,0.00019726,7]
[390775523,1760142728639,-302.750549,0.00019726,7]
[390775524,1760142728649,-500.0,0.00019726,2]
[390775525,1760142728660,-151.0,0.00019726,7]
[390775526,1760142728671,-302.750549,0.00019726,7]
[390775527,1760142728683,-151.0,0.00019726,7]
[390775528,1760142728694,-151.0,0.00019726,7]
[390775529,1760142728705,-238.763721,0.00019726,7]
[390775530,1760142728715,-151.0,0.00019726,7]
[390775531,1760142728728,-500.0,0.00019726,2]
[390775532,1760142728738,-151.0,0.00019726,7]
[390775533,1760142728750,-500.0,0.00019726,2]
[390775534,1760142728761,-4008.27,0.00019726,2]
[390775535,1760142728772,-158.863904,0.00019726,7]
[390775536,1760142728782,-511.94264793,0.00019726,2]
[390775537,1760142728793,-184.552497,0.00019726,7]
[390775538,1760142728803,-302.750549,0.00019726,7]
[390775539,1760142728813,-414.791547,0.00019726,7]
[390775540,1760142728823,-184.552497,0.00019726,7]
[390775541,1760142728833,-302.750549,0.00019726,7]
[390775542,1760142728843,-151.0,0.00019726,7]
[390775543,1760142728853,-414.791547,0.00019726,7]
[390775544,1760142728863,-1514.66,0.00019726,2]
[390775545,1760142728873,-500.0,0.00019726,2]
[390775546,1760142728883,-184.552497,0.00019726,7]
[390775547,1760142728893,-500.0,0.00019726,2]
[390775548,1760142728903,-414.791547,0.00019726,7]
[390775549,1760142728913,-500.0,0.00019726,2]
[390775550,1760142728923,-151.0,0.00019726,7]
[390775551,1760142728933,-500.0,0.00019726,2]
[390775552,1760142728944,-184.552497,0.00019726,7]
[390775553,1760142728954,-3495.36,0.00019726,2]
[390775554,1760142728964,-414.791547,0.00019726,7]
[390775555,1760142728974,-1446.16,0.00019726,2]
[390775556,1760142728987,-500.0,0.00019726,2]
[390775557,1760142728997,-500.0,0.00019726,2]
[390775558,1760142729008,-166.872683,0.00019726,7]
[390775559,1760142729017,-500.0,0.00019726,2]
[390775560,1760142729028,-639.62,0.00019726,2]
[390775561,1760142729038,-166.872683,0.00019726,7]
[390775562,1760142729047,-157.513251,0.00019726,7]
[390775563,1760142729059,-166.872683,0.00019726,7]
[390775564,1760142729069,-500.0,0.00019726,2]
[390775565,1760142729078,-157.513251,0.00019726,7]
[390775566,1760142729089,-166.872683,0.00019726,7]
[390775567,1760142729099,-500.0,0.00019726,2]
[390775568,1760142729110,-157.513251,0.00019726,7]
[390775569,1760142729120,-1274.35,0.00019726,2]
[390775570,1760142729130,-151.0,0.00019726,7]
[390775571,1760142729140,-591.13,0.00019726,2]
[390775572,1760142729151,-2343.78,0.00019726,2]
[390775573,1760142729161,-804.07,0.00019726,2]
[390775574,1760142729171,-157.513251,0.00019726,7]
[390775575,1760142729495,-151.0,0.00019726,7]
[390775576,1760142729506,-500.0,0.00019726,2]
[390775577,1760142729517,-861.59,0.00019726,2]
[390775578,1760142729528,-828.79,0.00019726,2]
[390775579,1760142729538,-500.0,0.00019726,2]
[390775580,1760142729548,-151.0,0.00019726,7]
[390775581,1760142729558,-3373.61,0.00019726,2]
[390775582,1760142729569,-500.0,0.00019726,2]
[390775583,1760142729579,-962.24,0.00019726,2]
[390775584,1760142729589,-151.0,0.00019726,7]
[390775585,1760142729599,-500.0,0.00019726,2]
[390775586,1760142729610,-500.0,0.00019726,2]
[390775587,1760142729620,-151.0,0.00019726,7]
[390775588,1760142729630,-151.0,0.00019726,7]
[390775589,1760142729639,-500.0,0.00019726,2]
[390775590,1760142729650,-151.0,0.00019726,7]
[390775591,1760142729660,-1030.34,0.00019726,2]
[390775592,1760142729671,-1156.88,0.00019726,2]
[390775593,1760142729681,-151.0,0.00019726,7]
[390775594,1760142729691,-632.25,0.00019726,2]
[390775595,1760142729701,-151.0,0.00019726,7]
[390775596,1760142729711,-922.83,0.00019726,2]
[390775597,1760142729721,-151.0,0.00019726,7]
[390775598,1760142729734,-500.0,0.00019726,2]
[390775599,1760142729745,-500.0,0.00019726,2]
[390775600,1760142729780,-1024.5,0.00019726,2]
[390775601,1760142729790,-500.0,0.00019726,2]
[390775602,1760142729801,-629.77,0.00019726,2]
[390775603,1760142729811,-500.0,0.00019726,2]
[390775604,1760142729821,-500.0,0.00019726,2]
[390775605,1760142729831,-500.0,0.00019726,2]
[390775606,1760142729841,-500.0,0.00019726,2]
[390775607,1760142729851,-825.8,0.00019726,2]
[390775608,1760142729860,-702.55,0.00019726,2]
[390775609,1760142729870,-400.0,0.00019726,2]
[390775610,1760142729879,-351.660154,0.00019726,7]
[390775611,1760142729889,-2518.82,0.00019726,2]
[390775612,1760142729900,-500.0,0.00019726,2]
[390775613,1760142729910,-500.0,0.00019726,2]
[390775614,1760142729920,-500.0,0.00019726,2]
[390775615,1760142729929,-500.0,0.00019726,2]
[390775616,1760142729939,-500.0,0.00019726,2]
[390775617,1760142729950,-500.0,0.00019726,2]
[390775618,1760142729960,-500.0,0.00019726,2]
[390775619,1760142729970,-500.0,0.00019726,2]
[390775620,1760142729984,-2661.75,0.00019726,2]
[390775621,1760142729996,-500.0,0.00019726,2]
[390775622,1760142730007,-500.0,0.00019726,2]
[390775623,1760142730016,-500.05,0.00019726,2]
[390775624,1760142730027,-500.0,0.00019726,2]
[390775625,1760142730038,-660.57,0.00019726,2]
[390775626,1760142730048,-151.0,0.00019726,7]
[390775627,1760142730059,-808.28,0.00019726,2]
[390775628,1760142730069,-359.63958604,0.00019726,2]
[390775629,1760142730079,-500.0,0.00019726,2]
[390775630,1760142730089,-624.51,0.00019726,2]
[390775631,1760142730099,-500.0,0.00019726,2]
[390775632,1760142730109,-351.660154,0.00019726,7]
[390775633,1760142730119,-3087.96,0.00019726,2]
[390775634,1760142730130,-500.0,0.00019726,2]
[390775635,1760142730141,-351.660154,0.00019726,7]
[390775636,1760142730152,-281.859114,0.00019726,7]
[390775637,1760142730162,-3489.96,0.00019726,2]
[390775638,1760142730172,-351.660154,0.00019726,7]
[390775639,1760142730182,-500.0,0.00019726,2]
[390775640,1760142730192,-281.859114,0.00019726,7]
[390775641,1760142730202,-281.859114,0.00019726,7]
[390775642,1760142730211,-281.859114,0.00019726,7]
[390775643,1760142730221,-1292.05,0.00019726,2]
[390775644,1760142730234,-1001.34,0.00019726,2]
[390775645,1760142730244,-151.0,0.00019726,7]
[390775646,1760142730253,-171.168714,0.00019726,7]
[390775647,1760142730263,-3734.2,0.00019726,2]
[390775648,1760142730273,-929.75,0.00019726,2]
[390775649,1760142730283,-151.0,0.00019726,7]
[390775650,1760142730293,-500.0,0.00019726,2]
[390775651,1760142730303,-979.0043,0.00019726,7]
[390775652,1760142730313,-500.0,0.00019726,2]
[390775653,1760142730324,-1184.37,0.00019726,2]
[390775654,1760142730334,-151.0,0.00019726,7]
[390775655,1760142730344,-979.0043,0.00019726,7]
[390775656,1760142730354,-151.0,0.00019726,7]
[390775657,1760142730364,-151.0,0.00019726,7]
[390775658,1760142730375,-213.82654223,0.00019726,2]
[390775659,1760142730384,-979.0043,0.00019726,7]
[390775660,1760142730394,-151.0,0.00019726,7]
[390775661,1760142730406,-500.0,0.00019726,2]
[390775662,1760142730417,-151.0,0.00019726,7]
[390775663,1760142730427,-4288.71,0.00019726,2]
[390775664,1760142730437,-979.0043,0.00019726,7]
[390775665,1760142730447,-151.0,0.00019726,7]
[390775666,1760142730456,-631.5,0.00019726,2]
[390775667,1760142730467,-189.29829613,0.00019726,2]
[390775668,1760142730480,-500.0,0.00019726,2]
[390775669,1760142730491,-602.14,0.00019726,2]
[390775670,1760142730502,-171.168714,0.00019726,7]
[390775671,1760142730512,-171.168714,0.00019726,7]
[390775672,1760142730522,-569.35,0.00019726,2]
[390775673,1760142730532,-1939.29,0.00019726,2]
[390775674,1760142730543,-500.0,0.00019726,2]
[390775675,1760142730553,-500.0,0.00019726,2]
[390775676,1760142730563,-171.168714,0.00019726,7]
[390775677,1760142730573,-500.0,0.00019726,2]
[390775678,1760142730583,-1960.25,0.00019726,2]
[390775679,1760142730593,-3147.51,0.00019726,2]
[390775680,1760142730604,-500.0,0.00019726,2]
[390775681,1760142730614,-500.0,0.00019726,2]
[390775682,1760142730624,-500.0,0.00019726,2]
[390775683,1760142730635,-500.0,0.00019726,2]
[390775684,1760142730645,-500.0,0.00019726,2]
[390775685,1760142730655,-500.0,0.00019726,2]
[390775686,1760142730665,-500.0,0.00019726,2]
[390775687,1760142730675,-500.0,0.00019726,2]
[390775688,1760142730685,-3428.77,0.00019726,2]
[390775689,1760142730694,-1084.85,0.00019726,2]
[390775690,1760142730705,-1260.99,0.00019726,2]
[390775691,1760142730715,-183.98039031,0.00019726,2]
[390775692,1760142730725,-500.0,0.00019726,2]
[390775693,1760142730738,-284.416891,0.00019726,7]
[390775694,1760142730748,-500.0,0.00019726,2]
[390775695,1760142730758,-151.0,0.00019726,7]
[390775696,1760142730768,-500.0,0.00019726,2]
[390775697,1760142730778,-256.127876,0.00019726,7]
[390775698,1760142730788,-500.0,0.00019726,2]
[390775699,1760142730798,-151.0,0.00019726,7]
[390775700,1760142730808,-502.43612761,0.00019726,2]
[390775701,1760142730817,-2023.48,0.00019726,2]
[390775702,1760142730827,-500.0,0.00019726,2]
[390775703,1760142730836,-500.0,0.00019726,2]
[390775704,1760142730846,-3502.67,0.00019726,2]
[390775705,1760142730855,-500.0,0.00019726,2]
[390775706,1760142730865,-500.0,0.00019726,2]
[390775707,1760142730874,-500.0,0.00019726,2]
[390775708,1760142730884,-500.0,0.00019726,2]
[390775709,1760142730893,-500.0,0.00019726,2]
[390775710,1760142730903,-517.420381,0.00019726,7]
[390775711,1760142730913,-517.420381,0.00019726,7]
[390775712,1760142730923,-500.0,0.00019726,2]
[390775713,1760142730933,-500.0,0.00019726,2]
[390775714,1760142730943,-1077.26,0.00019726,2]
[390775715,1760142730952,-517.420381,0.00019726,7]
[390775716,1760142730963,-2214.25,0.00019726,2]
[390775717,1760142730973,-500.0,0.00019726,2]
[390775718,1760142730985,-620.92,0.00019726,2]
[390775719,1760142730995,-517.420381,0.00019726,7]
[390775720,1760142731005,-500.0,0.00019726,2]
[390775721,1760142731015,-500.0,0.00019726,2]
[390775722,1760142731025,-500.0,0.00019726,2]
[390775723,1760142731035,-1691.97,0.00019726,2]
[390775724,1760142731045,-500.0,0.00019726,2]
[390775725,1760142731054,-151.0,0.00019726,7]
[390775726,1760142731064,-560.39,0.00019726,2]
[390775727,1760142731074,-610.94,0.00019726,2]
[390775728,1760142731083,-151.0,0.00019726,7]
[390775729,1760142731092,-500.0,0.00019726,2]
[390775730,1760142731102,-151.0,0.00019726,7]
[390775731,1760142731111,-512.52655,0.00019726,7]
[390775732,1760142731121,-500.0,0.00019726,2]
[390775733,1760142731131,-151.0,0.00019726,7]
[390775734,1760142731140,-500.0,0.00019726,2]
[390775735,1760142731150,-512.52655,0.00019726,7]
[390775736,1760142731159,-367.511698,0.00019726,7]
[390775737,1760142731169,-500.0,0.00019726,2]
[390775738,1760142731179,-846.47,0.00019726,2]
[390775739,1760142731188,-1358.07,0.00019726,2]
[390775740,1760142731198,-512.52655,0.00019726,7]
[390775741,1760142731208,-367.511698,0.00019726,7]
[390775742,1760142731217,-500.0,0.00019726,2]
[390775743,1760142731230,-500.0,0.00019726,2]
[390775744,1760142731240,-2493.46,0.00019726,2]
[390775745,1760142731250,-500.0,0.00019726,2]
[390775746,1760142731260,-512.52655,0.00019726,7]
[390775747,1760142731270,-367.511698,0.00019726,7]
[390775748,1760142731280,-585.73,0.00019726,2]
[390775749,1760142731290,-367.511698,0.00019726,7]
[390775750,1760142731300,-151.0,0.00019726,7]
[390775751,1760142731315,-500.0,0.00019726,2]
[390775752,1760142731326,-352.77140995,0.00019726,2]
[390775753,1760142731336,-208.000925,0.00019726,7]
[390775754,1760142731347,-500.0,0.00019726,2]
[390775755,1760142731357,-208.000925,0.00019726,7]
[390775756,1760142731367,-500.0,0.00019726,2]
[390775757,1760142731377,-712.82,0.00019726,2]
[390775758,1760142731387,-208.000925,0.00019726,7]
[390775759,1760142731397,-500.0,0.00019726,2]
[390775760,1760142731407,-1276.87,0.00019726,2]
[390775761,1760142731417,-1019.49,0.00019726,2]
[390775762,1760142731427,-208.000925,0.00019726,7]
[390775763,1760142731436,-500.0,0.00019726,2]
[390775764,1760142731446,-500.0,0.00019726,2]
[390775765,1760142731457,-500.0,0.00019726,2]
[390775766,1760142731467,-1133.03,0.00019726,2]
[390775767,1760142731481,-151.0,0.00019726,7]
[390775768,1760142731490,-383.733858,0.00019726,7]
[390775769,1760142731501,-301.541685,0.00019726,7]
[390775770,1760142731511,-675.94,0.00019726,2]
[390775771,1760142731521,-500.0,0.00019726,2]
[390775772,1760142731531,-1205.05,0.00019726,2]
[390775773,1760142731542,-500.0,0.00019726,2]
[390775774,1760142731552,-151.0,0.00019726,7]
[390775775,1760142731561,-383.733858,0.00019726,7]
[390775776,1760142731572,-301.541685,0.00019726,7]
[390775777,1760142731582,-558.89,0.00019726,2]
[390775778,1760142731591,-151.0,0.00019726,7]
[390775779,1760142731600,-383.733858,0.00019726,7]
[390775780,1760142731611,-301.541685,0.00019726,7]
[390775781,1760142731621,-151.0,0.00019726,7]
[390775782,1760142731631,-383.733858,0.00019726,7]
[390775783,1760142731640,-301.541685,0.00019726,7]
[390775784,1760142731650,-500.0,0.00019726,2]
[390775785,1760142731660,-1742.59,0.00019726,2]
[390775786,1760142731670,-1315.34,0.00019726,2]
[390775787,1760142731680,-3663.43,0.00019726,2]
[390775788,1760142731690,-500.0,0.00019726,2]
[390775789,1760142731699,-1080.54,0.00019726,2]
[390775790,1760142731709,-500.0,0.00019726,2]
[390775791,1760142731719,-500.0,0.00019726,2]
[390775792,1760142731732,-500.0,0.00019726,2]
[390775793,1760142731742,-971.68,0.00019726,2]
[390775794,1760142731752,-510.15101038,0.00019726,2]
[390775795,1760142731762,-268.361997,0.00019726,7]
[390775796,1760142731773,-500.0,0.00019726,2]
[390775797,1760142731783,-500.0,0.00019726,2]
[390775798,1760142731792,-268.361997,0.00019726,7]
[390775799,1760142731802,-1859.01,0.00019726,2]
[390775800,1760142731811,-500.0,0.00019726,2]
[390775801,1760142731821,-3309.42,0.00019726,2]
[390775802,1760142731831,-268.361997,0.00019726,7]
[390775803,1760142731841,-829.93,0.00019726,2]
[390775804,1760142731851,-268.361997,0.00019726,7]
[390775805,1760142731860,-1628.04,0.00019726,2]
[390775806,1760142731870,-3016.63,0.00019726,2]
[390775807,1760142731879,-644.43459563,0.00019726,2]
[390775808,1760142731888,-2826.04,0.00019726,2]
[390775809,1760142731898,-3292.73,0.00019726,2]
[390775810,1760142731907,-169.060794,0.00019726,7]
[390775811,1760142731917,-500.0,0.00019726,2]
[390775812,1760142731926,-500.0,0.00019726,2]
[390775813,1760142731935,-1000.0,0.00019726,2]
[390775814,1760142731944,-169.060794,0.00019726,7]
[390775815,1760142731954,-572.16,0.00019726,2]
[390775816,1760142731963,-151.0,0.00019726,7]
[390775817,1760142731972,-1077.15,0.00019726,2]
[390775818,1760142731986,-500.0,0.00019726,2]
[390775819,1760142731995,-151.0,0.00019726,7]
[390775820,1760142732119,-1375.09,0.00019726,2]
[390775821,1760142732128,-500.0,0.00019726,2]
[390775822,1760142732137,-610.04,0.00019726,2]
[390775823,1760142732147,-3360.39,0.00019726,2]
[390775824,1760142732156,-270.070198,0.00019726,7]
[390775825,1760142732166,-500.0,0.00019726,2]
[390775826,1760142732176,-900.6,0.00019726,2]
[390775827,1760142732185,-503.96972019,0.00019726,2]
[390775828,1760142732194,-300.0,0.00019726,2]
[390775829,1760142732203,-500.0,0.00019726,2]
[390775830,1760142732213,-500.0,0.00019726,2]
[390775831,1760142732223,-1714.18,0.00019726,2]
[390775832,1760142732235,-500.0,0.00019726,2]
[390775833,1760142732244,-2806.45,0.00019726,2]
[390775834,1760142732253,-726.35,0.00019726,2]
[390775835,1760142732263,-500.0,0.00019726,2]
[390775836,1760142732273,-169.060794,0.00019726,7]
[390775837,1760142732284,-532.25,0.00019726,2]
[390775838,1760142732294,-169.060794,0.00019726,7]
[390775839,1760142732305,-500.0,0.00019726,2]
[390775840,1760142732315,-500.0,0.00019726,2]
[390775841,1760142732329,-500.0,0.00019726,2]
[390775842,1760142732339,-802.78,0.00019726,2]
[390775843,1760142732350,-1678.94,0.00019726,2]
[390775844,1760142732360,-861.42,0.00019726,2]
[390775845,1760142732371,-3932.75,0.00019726,2]
[390775846,1760142732382,-1102.5,0.00019726,2]
[390775847,1760142732392,-151.0,0.00019726,7]
[390775848,1760142732403,-151.0,0.00019726,7]
[390775849,1760142732413,-500.0,0.00019726,2]
[390775850,1760142732424,-500.0,0.00019726,2]
[390775851,1760142732434,-597.07,0.00019726,2]
[390775852,1760142732445,-500.0,0.00019726,2]
[390775853,1760142732455,-500.0,0.00019726,2]
[390775854,1760142732465,-1675.619147,0.00019726,7]
[390775855,1760142732475,-590.52,0.00019726,2]
[390775856,1760142732488,-500.0,0.00019726,2]
[390775857,1760142732498,-1139.36,0.00019726,2]
[390775858,1760142732508,-1675.619147,0.00019726,7]
[390775859,1760142732518,-523.1913144,0.00019726,2]
[390775860,1760142732528,-500.0,0.00019726,2]
[390775861,1760142732539,-1675.619147,0.00019726,7]
[390775862,1760142732549,-151.0,0.00019726,7]
[390775863,1760142732559,-500.0,0.00019726,2]
[390775864,1760142732570,-500.0,0.00019726,2]
[390775865,1760142732580,-151.0,0.00019726,7]
[390775866,1760142732590,-1675.619147,0.00019726,7]
[390775867,1760142732600,-151.0,0.00019726,7]
[390775868,1760142732609,-500.0,0.00019726,2]
[390775869,1760142732619,-151.0,0.00019726,7]
[390775870,1760142732629,-593.314853,0.00019726,7]
[390775871,1760142732639,-89.12121448,0.00019726,7]
[390775872,1760142734908,810.78,7.185e-05,2]
[390775873,1760142735011,810.78,7.564e-05,2]
[390775874,1760142735048,-958.11451349,0.00013979,2]
[390775875,1760142735543,810.78,7.942e-05,2]
[390775876,1760142735592,-978.26821463,0.00013979,2]
[390775877,1760142735616,-479.35145764,0.00013979,2]
[390775878,1760142735686,-810.9813185,0.00013979,2]
[390775879,1760142735734,-330.15946457,0.00013979,2]
[390775880,1760142735746,-1431.0,0.00015512,5]
[390775881,1760142735757,-1431.0,0.00015567,5]
[390775882,1760142735768,-1431.0,0.00015622,5]
[390775883,1760142735778,-1431.0,0.00015676,5]
[390775884,1760142735789,-1431.0,0.00015731,5]
[390775885,1760142735798,-1431.0,0.00015786,5]
[390775886,1760142735810,-1431.0,0.00015841,5]
[390775887,1760142735820,-1431.0,0.00015896,5]
[390775888,1760142735830,-1431.0,0.0001595,5]
[390775889,1760142735840,-1431.0,0.00016005,5]
[390775890,1760142735850,-1431.0,0.0001606,5]
[390775891,1760142735861,-1431.0,0.00016115,5]
[390775892,1760142735870,-1431.0,0.00016169,5]
[390775893,1760142735880,-1445.77273176,0.00016224,5]
[390775894,1760142735889,-173.513077,0.00017,2]
[390775895,1760142735899,-2048.0,0.00018295,2]
[390775896,1760142735909,-173.513077,0.000191,2]
[390775897,1760142735919,-927.98,0.00019178,2]
[390775898,1760142735929,-500.0,0.00019178,2]
[390775899,1760142735939,-500.0,0.00019178,2]
[390775900,1760142735949,-500.0,0.00019178,2]
[390775901,1760142735959,-500.0,0.00019178,2]
[390775902,1760142735968,-500.0,0.00019178,2]
[390775903,1760142735979,-156.8726352,0.00019178,2]
[390775904,1760142736111,810.78,8.32e-05,2]
[390775905,1760142736553,810.78,8.698e-05,2]
[390775906,1760142736706,810.78,9.076e-05,2]
[390775907,1760142736792,810.78,9.455e-05,2]
[390775908,1760142736923,810.78,9.833e-05,2]
[390775909,1760142737015,810.78,0.00010211,2]
[390775910,1760142737113,810.78,0.00010589,2]
[390775911,1760142737280,810.78,0.00010967,2]
[390775912,1760142737450,810.78,0.00011346,2]
[390775913,1760142737617,810.78,0.00011724,2]
[390775914,1760142737778,810.78,0.00012102,2]
[390775915,1760142738292,810.78,0.0001248,2]
[390775916,1760142738568,810.78,0.00012858,2]
[390775917,1760142738711,810.78,0.00013236,2]
[390775918,1760142738799,810.78,0.00013615,2]
[390775919,1760142744966,3461.0,0.000105,5]
[390775920,1760142745406,-810.78,0.00013993,2]
[390775921,1760142747178,150.0,7.904e-05,2]
[390775922,1760142747274,250.0,7.904e-05,2]
[390775923,1760142747313,250.0,7.375e-05,2]
[390775924,1760142747412,250.0,7.942e-05,2]
[390775925,1760142750040,1621.0,0.00011275,2]
[390775926,1760142750286,578.0,0.00011331,2]
[390775927,1760142750559,467.0,0.00011387,2]
[390775928,1760142751109,250.0,0.0001006,2]
[390775929,1760142751153,247.0,0.00011443,2]
[390775930,1760142751404,849.0,0.00011499,2]
[390775931,1760142751596,470.0,0.00011556,2]
[390775932,1760142751721,910.0,0.00011612,2]
[390775933,1760142755335,1918.0,0.00010138,2]
[390775934,1760142755481,1742.0,0.00010189,2]
[390775935,1760142755625,1692.0,0.00010239,2]
[390775936,1760142755941,1301.0,0.0001029,2]
[390775937,1760142756551,168.0,9.804e-05,2]
[390775938,1760142763875,547.09079562,0.00013631,2]
[390775939,1760142764042,729.45439417,0.00013631,2]
[390775940,1760142764103,911.81799272,0.00013631,2]
[390775941,1760142764307,1094.18159126,0.00013631,2]
[390775942,1760142764359,547.09079563,0.00013631,2]
[390775943,1760142768589,198.0,0.00013238,2]
[390775944,1760142769029,292.0,9.776e-05,2]
[390775945,1760142769516,1035.0,9.824e-05,2]
[390775946,1760142769857,1896.0,9.873e-05,2]
[390775947,1760142770217,1769.0,9.922e-05,2]
[390775948,1760142770898,969.31545036,9.776e-05,2]
[390775950,1760142791669,250.0,0.0001006,2]
[390775951,1760142793781,2000.0,0.00011066,2]
[390775952,1760142793853,2000.0,0.0001197,2]
[390775953,1760142793918,2000.0,0.00013148,2]
[390775954,1760142793979,2000.0,0.00013148,2]
[390775955,1760142794053,2000.0,0.00013148,2]
[390775956,1760142794402,150.0,0.00011066,2]
[390775957,1760142794555,250.0,0.00011066,2]
[390775958,1760142794618,250.0,0.00010563,2]
[390775959,1760142794692,250.0,0.00012566,2]
[390775961,1760142867557,181.94,0.00013488,2]
[390775962,1760142975440,-179.65757404,0.00013761,2]
[390775963,1760142975464,-489.0,0.00013772,2]
[390775964,1760143004087,169.91,0.000107,2]
[390775965,1760143096166,213.23242596,0.00013393,2]
[390775966,1760143096196,1639.18757404,0.00013393,2]
[390775967,1760143136310,6935.88,0.00013388,2]
[390775968,1760143170057,18312.83,0.00013369,2]
[390775970,1760143215058,4180.46,0.00013308,2]
[390775977,1760143395220,10129.39,0.00013302,2]
[390775978,1760143454310,206.04,0.00013266,2]
[390775979,1760143549175,500.0,0.00013293,2]
[390775980,1760143557779,5006.86147231,0.00013701,2]
[390775987,1760143666283,250.0,0.000133,7]
[390775991,1760143810485,3411.0,0.000137,5]
[390776004,1760143832720,-500.0,0.00013803,2]
[390776006,1760143832756,-194.11025815,0.00013803,2]
[390776007,1760143832765,-65.69275388,0.00013803,2]
[390776008,1760143832777,-100.03831988,0.00013803,2]
[390776009,1760143832787,-312.52348686,0.00013803,2]
[390776010,1760143832796,-871.22848721,0.00013804,2]
[390776018,1760143832938,-328.77151279,0.00013804,2]
[390776020,1760143832948,-300.0,0.00013806,2]
[390776022,1760143832957,-195.0,0.00013806,2]
[390776024,1760143832967,-2000.0,0.00013807,2]
[390776026,1760143832976,-250.0,0.00013807,2]
[390776028,1760143832986,-300.0,0.00013807,2]
[390776030,1760143832995,-1200.0,0.00013807,2]
[390776032,1760143833005,-195.0,0.00013807,2]